fUSD/lending_fUSD_20250716
["ID","MTS","AMOUNT","RATE_DAILY","PERIOD"]
[372493235,1752663053543,-1618.81,0.00021917,2]
[372493236,1752663053553,-1101.08,0.00021917,2]
[372493237,1752663053563,-7522.89,0.00021917,2]
[372493238,1752663053573,-1085.51,0.00021917,2]
[372493239,1752663053583,-460.0,0.00021917,2]
[372493240,1752663053594,-460.0,0.00021917,2]
[372493241,1752663053604,-460.0,0.00021917,2]
[372493242,1752663053614,-985.55,0.00021917,2]
[372493243,1752663053624,-7023.53,0.00021917,2]
[372493244,1752663053634,-699.45,0.00021917,2]
[372493245,1752663053644,-4103.12,0.00021917,2]
[372493246,1752663053654,-460.0,0.00021917,2]
[372493247,1752663053664,-4907.65,0.00021917,2]
[372493248,1752663053673,-460.0,0.00021917,2]
[372493249,1752663053684,-152.004098,0.00021917,2]
[372493250,1752663053696,-474.77939088,0.00021917,2]
[372493251,1752663053706,-460.0,0.00021917,2]
[372493252,1752663053716,-460.0,0.00021917,2]
[372493253,1752663053726,-587.29,0.00021917,2]
[372493254,1752663053736,-805.39,0.00021917,2]
[372493255,1752663053746,-2334.85,0.00021917,2]
[372493256,1752663053756,-460.0,0.00021917,2]
[372493257,1752663053766,-460.0,0.00021917,2]
[372493258,1752663053776,-1839.74,0.00021917,2]
[372493259,1752663053786,-1300.92,0.00021917,2]
[372493260,1752663053796,-261.36222209,0.00021917,2]
[372493261,1752663053806,-7022.82,0.00021917,2]
[372493262,1752663053816,-460.0,0.00021917,2]
[372493263,1752663053827,-460.0,0.00021917,2]
[372493264,1752663053838,-460.0,0.00021917,2]
[372493265,1752663053848,-460.0,0.00021917,2]
[372493266,1752663053859,-4783.75,0.00021917,2]
[372493267,1752663053869,-462.70428937,0.00021917,2]
[372493268,1752663053879,-460.0,0.00021917,2]
[372493269,1752663053890,-460.0,0.00021917,2]
[372493270,1752663053900,-574.7,0.00021917,2]
[372493271,1752663053910,-460.0,0.00021917,2]
[372493272,1752663053920,-11831.05,0.00021917,2]
[372493273,1752663053930,-5175.99,0.00021917,2]
[372493274,1752663053940,-1721.09,0.00021917,2]
[372493275,1752663053951,-460.0,0.00021917,2]
[372493276,1752663053961,-2063.66,0.00021917,2]
[372493277,1752663053971,-12650.62,0.00021917,2]
[372493278,1752663053981,-787.25,0.00021917,2]
[372493279,1752663053991,-609.0,0.00021917,2]
[372493280,1752663054000,-641.88,0.00021917,2]
[372493281,1752663054010,-460.0,0.00021917,2]
[372493282,1752663054020,-460.0,0.00021917,2]
[372493283,1752663054030,-2321.93,0.00021917,2]
[372493284,1752663054040,-460.0,0.00021917,2]
[372493285,1752663054049,-460.0,0.00021917,2]
[372493286,1752663054059,-460.0,0.00021917,2]
[372493287,1752663054069,-461.082144,0.00021917,2]
[372493288,1752663054079,-647.56,0.00021917,2]
[372493289,1752663054089,-460.0,0.00021917,2]
[372493290,1752663054100,-1046.05,0.00021917,2]
[372493291,1752663054110,-434.21477913,0.00021917,2]
[372493292,1752663054119,-460.0,0.00021917,2]
[372493293,1752663054129,-25853.72,0.00021917,2]
[372493294,1752663054139,-460.0,0.00021917,2]
[372493295,1752663054148,-347.50158156,0.00021917,2]
[372493296,1752663054158,-509.36002167,0.00021917,2]
[372493297,1752663054172,-2399.4,0.00021917,2]
[372493298,1752663054182,-1196.04,0.00021917,2]
[372493299,1752663054192,-5256.36,0.00021917,2]
[372493300,1752663054203,-570.67,0.00021917,2]
[372493301,1752663054213,-460.0,0.00021917,2]
[372493302,1752663054223,-460.0,0.00021917,2]
[372493303,1752663054232,-1199.05,0.00021917,2]
[372493304,1752663054244,-463.25939081,0.00021917,2]
[372493305,1752663054256,-1873.93,0.00021917,2]
[372493306,1752663054267,-6048.28,0.00021917,2]
[372493307,1752663054278,-608.82,0.00021917,2]
[372493308,1752663054289,-460.0,0.00021917,2]
[372493309,1752663054300,-460.0,0.00021917,2]
[372493310,1752663054310,-460.0,0.00021917,2]
[372493311,1752663054319,-460.0,0.00021917,2]
[372493312,1752663054330,-3826.55,0.00021917,2]
[372493313,1752663054340,-679.82,0.00021917,2]
[372493314,1752663054349,-460.0,0.00021917,2]
[372493315,1752663054359,-226.43554,0.00021917,2]
[372493316,1752663054369,-644.0,0.00021917,2]
[372493317,1752663054379,-460.0,0.00021917,2]
[372493318,1752663054389,-226.43554,0.00021917,2]
[372493319,1752663054399,-4984.48,0.00021917,2]
[372493320,1752663054409,-587.74,0.00021917,2]
[372493321,1752663054419,-1010.1,0.00021917,2]
[372493322,1752663054429,-2707.25,0.00021917,2]
[372493323,1752663054439,-226.43554,0.00021917,2]
[372493324,1752663054448,-226.43554,0.00021917,2]
[372493325,1752663054458,-226.43554,0.00021917,2]
[372493326,1752663054467,-1216.26,0.00021917,2]
[372493327,1752663054477,-226.43554,0.00021917,2]
[372493328,1752663054487,-2657.96,0.00021917,2]
[372493329,1752663054497,-226.43554,0.00021917,2]
[372493330,1752663054506,-2675.67,0.00021917,2]
[372493331,1752663054516,-1531.63,0.00021917,2]
[372493332,1752663054526,-460.0,0.00021917,2]
[372493333,1752663054536,-226.43554,0.00021917,2]
[372493334,1752663054546,-460.0,0.00021917,2]
[372493335,1752663054555,-460.0,0.00021917,2]
[372493336,1752663054565,-226.43554,0.00021917,2]
[372493337,1752663054575,-460.0,0.00021917,2]
[372493338,1752663054585,-226.43554,0.00021917,2]
[372493339,1752663054595,-226.43554,0.00021917,2]
[372493340,1752663054605,-226.43554,0.00021917,2]
[372493341,1752663054615,-226.43554,0.00021917,2]
[372493342,1752663054738,-226.43554,0.00021917,2]
[372493343,1752663054749,-460.0,0.00021917,2]
[372493344,1752663054759,-807.97,0.00021917,2]
[372493345,1752663054768,-460.0,0.00021917,2]
[372493346,1752663054778,-6155.9,0.00021917,2]
[372493347,1752663054787,-10398.73,0.00021917,2]
[372493348,1752663054796,-2892.99,0.00021917,2]
[372493349,1752663054806,-400.807852,0.00021917,2]
[372493350,1752663054816,-460.0,0.00021917,2]
[372493351,1752663054826,-460.0,0.00021917,2]
[372493352,1752663054836,-3663.1,0.00021917,2]
[372493353,1752663054846,-783.37,0.00021917,2]
[372493354,1752663054856,-2417.79,0.00021917,2]
[372493355,1752663054866,-2707.06,0.00021917,2]
[372493356,1752663054876,-1645.27,0.00021917,2]
[372493357,1752663054885,-5760.76,0.00021917,2]
[372493358,1752663054895,-526.21928872,0.00021917,2]
[372493359,1752663054905,-460.0,0.00021917,2]
[372493360,1752663054914,-2977.53,0.00021917,2]
[372493361,1752663054924,-1156.71,0.00021917,2]
[372493362,1752663054933,-4994.77,0.00021917,2]
[372493363,1752663054943,-828.48,0.00021917,2]
[372493364,1752663054953,-460.0,0.00021917,2]
[372493365,1752663054963,-1737.41,0.00021917,2]
[372493366,1752663054972,-697.34,0.00021917,2]
[372493367,1752663054982,-1860.1,0.00021917,2]
[372493368,1752663054992,-618.42,0.00021917,2]
[372493369,1752663055002,-3082.79,0.00021917,2]
[372493370,1752663055011,-460.0,0.00021917,2]
[372493371,1752663055021,-763.37,0.00021917,2]
[372493372,1752663055031,-460.0,0.00021917,2]
[372493373,1752663055040,-411.27936849,0.00021917,2]
[372493374,1752663055049,-153.232951,0.00021917,2]
[372493375,1752663055059,-5360.04,0.00021917,2]
[372493376,1752663055068,-1544.88,0.00021917,2]
[372493377,1752663055078,-460.0,0.00021917,2]
[372493378,1752663055087,-532.67,0.00021917,2]
[372493379,1752663055097,-566.67,0.00021917,2]
[372493380,1752663055107,-460.0,0.00021917,2]
[372493381,1752663055116,-1351.27,0.00021917,2]
[372493382,1752663055125,-6960.91,0.00021917,2]
[372493383,1752663055135,-1854.73,0.00021917,2]
[372493384,1752663055144,-1871.79,0.00021917,2]
[372493385,1752663055153,-460.0,0.00021917,2]
[372493386,1752663055164,-498.31,0.00021917,2]
[372493387,1752663055177,-3727.42,0.00021917,2]
[372493388,1752663055188,-935.71,0.00021917,2]
[372493389,1752663055198,-460.0,0.00021917,2]
[372493390,1752663055207,-2952.62,0.00021917,2]
[372493391,1752663055218,-460.0,0.00021917,2]
[372493392,1752663055228,-1210.46,0.00021917,2]
[372493393,1752663055237,-460.0,0.00021917,2]
[372493394,1752663055247,-4520.63,0.00021917,2]
[372493395,1752663055256,-1354.22,0.00021917,2]
[372493396,1752663055266,-647.88,0.00021917,2]
[372493397,1752663055275,-460.0,0.00021917,2]
[372493398,1752663055285,-1674.69,0.00021917,2]
[372493399,1752663055295,-460.0,0.00021917,2]
[372493400,1752663055304,-1807.76,0.00021917,2]
[372493401,1752663055313,-544.05,0.00021917,2]
[372493402,1752663055322,-1562.68,0.00021917,2]
[372493403,1752663055331,-804.49,0.00021917,2]
[372493404,1752663055341,-313.4505328,0.00021917,2]
[372493405,1752663055350,-460.0,0.00021917,2]
[372493406,1752663055360,-460.0,0.00021917,2]
[372493407,1752663055369,-460.0,0.00021917,2]
[372493408,1752663055379,-4930.79,0.00021917,2]
[372493409,1752663055388,-619.88,0.00021917,2]
[372493410,1752663055399,-460.0,0.00021917,2]
[372493411,1752663055409,-460.0,0.00021917,2]
[372493412,1752663055418,-2967.28,0.00021917,2]
[372493413,1752663055428,-460.0,0.00021917,2]
[372493414,1752663055437,-460.0,0.00021917,2]
[372493415,1752663055447,-1331.59,0.00021917,2]
[372493416,1752663055457,-460.0,0.00021917,2]
[372493417,1752663055466,-1756.27,0.00021917,2]
[372493418,1752663055476,-3471.77,0.00021917,2]
[372493419,1752663055485,-1372.2,0.00021917,2]
[372493420,1752663055495,-2884.75,0.00021917,2]
[372493421,1752663055505,-4338.23,0.00021917,2]
[372493422,1752663055514,-1048.9,0.00021917,2]
[372493423,1752663055524,-1304.13,0.00021917,2]
[372493424,1752663055533,-460.0,0.00021917,2]
[372493425,1752663055543,-460.0,0.00021917,2]
[372493426,1752663055552,-2011.92,0.00021917,2]
[372493427,1752663055562,-460.0,0.00021917,2]
[372493428,1752663055571,-5916.53,0.00021917,2]
[372493429,1752663055580,-460.0,0.00021917,2]
[372493430,1752663055590,-861.69,0.00021917,2]
[372493431,1752663055599,-589.94,0.00021917,2]
[372493432,1752663055609,-460.0,0.00021917,2]
[372493433,1752663055618,-460.0,0.00021917,2]
[372493434,1752663055627,-771.65,0.00021917,2]
[372493435,1752663055637,-469.09,0.00021917,2]
[372493436,1752663055646,-460.0,0.00021917,2]
[372493437,1752663055656,-18520.14,0.00021917,2]
[372493438,1752663055665,-461.85660588,0.00021917,2]
[372493439,1752663055674,-460.0,0.00021917,2]
[372493440,1752663055683,-583.72985589,0.00021917,2]
[372493441,1752663055694,-460.0,0.00021917,2]
[372493442,1752663055705,-2080.47,0.00021917,2]
[372493443,1752663055715,-1000.0,0.00021917,2]
[372493444,1752663055724,-1896.91,0.00021917,2]
[372493445,1752663055734,-1000.0,0.00021917,2]
[372493446,1752663055743,-1267.95,0.00021917,2]
[372493447,1752663055753,-6378.4,0.00021917,2]
[372493448,1752663055763,-460.0,0.00021917,2]
[372493449,1752663055774,-460.0,0.00021917,2]
[372493450,1752663055783,-151.0,0.00021917,2]
[372493451,1752663055793,-460.0,0.00021917,2]
[372493452,1752663055802,-624.77,0.00021917,2]
[372493453,1752663055812,-6594.98,0.00021917,2]
[372493454,1752663055821,-151.0,0.00021917,2]
[372493455,1752663055831,-1113.8,0.00021917,2]
[372493456,1752663055840,-4665.3,0.00021917,2]
[372493457,1752663055849,-162.76666,0.00021917,2]
[372493458,1752663055859,-9546.24,0.00021917,2]
[372493459,1752663055868,-4540.32,0.00021917,2]
[372493460,1752663055877,-460.0,0.00021917,2]
[372493461,1752663055888,-460.0,0.00021917,2]
[372493462,1752663055898,-4658.6,0.00021917,2]
[372493463,1752663055909,-460.0,0.00021917,2]
[372493464,1752663055918,-460.0,0.00021917,2]
[372493465,1752663055928,-575.28,0.00021917,2]
[372493466,1752663055937,-1746.59,0.00021917,2]
[372493467,1752663055947,-2605.38,0.00021917,2]
[372493468,1752663055956,-460.0,0.00021917,2]
[372493469,1752663055966,-484.92,0.00021917,2]
[372493470,1752663055975,-460.0,0.00021917,2]
[372493471,1752663055985,-460.0,0.00021917,2]
[372493472,1752663055995,-2501.59,0.00021917,2]
[372493473,1752663056004,-464.65607354,0.00021917,2]
[372493474,1752663056014,-460.0,0.00021917,2]
[372493475,1752663056023,-7774.07,0.00021917,2]
[372493476,1752663056032,-464.51680727,0.00021917,2]
[372493477,1752663056042,-570.76,0.00021917,2]
[372493478,1752663056051,-1011.46,0.00021917,2]
[372493479,1752663056061,-2763.84,0.00021917,2]
[372493480,1752663056070,-460.0,0.00021917,2]
[372493481,1752663056080,-3322.94,0.00021917,2]
[372493482,1752663056091,-5927.89,0.00021917,2]
[372493483,1752663056100,-500.0,0.00021917,2]
[372493484,1752663056110,-491.53818594,0.00021917,2]
[372493485,1752663056120,-460.0,0.00021917,2]
[372493486,1752663056130,-460.0,0.00021917,2]
[372493487,1752663056139,-460.0,0.00021917,2]
[372493488,1752663056149,-1367.25,0.00021917,2]
[372493489,1752663056158,-7494.33,0.00021917,2]
[372493490,1752663056170,-16963.12,0.00021917,2]
[372493491,1752663056181,-460.0,0.00021917,2]
[372493492,1752663056191,-21344.53,0.00021917,2]
[372493493,1752663056200,-460.0,0.00021917,2]
[372493494,1752663056209,-2065.11,0.00021917,2]
[372493495,1752663056220,-3212.42,0.00021917,2]
[372493496,1752663056229,-5953.02,0.00021917,2]
[372493497,1752663056238,-1014.23,0.00021917,2]
[372493498,1752663056248,-2587.67,0.00021917,2]
[372493499,1752663056259,-5650.16,0.00021917,2]
[372493500,1752663056268,-476.32,0.00021917,2]
[372493501,1752663056278,-4486.27,0.00021917,2]
[372493502,1752663056287,-5415.43,0.00021917,2]
[372493503,1752663056296,-460.0,0.00021917,2]
[372493504,1752663056307,-460.0,0.00021917,2]
[372493505,1752663056316,-1538.9,0.00021917,2]
[372493506,1752663056326,-635.25,0.00021917,2]
[372493507,1752663056335,-2685.11,0.00021917,2]
[372493508,1752663056347,-465.44040657,0.00021917,2]
[372493509,1752663056356,-2744.51,0.00021917,2]
[372493510,1752663056366,-1047.77,0.00021917,2]
[372493511,1752663056376,-460.0,0.00021917,2]
[372493512,1752663056385,-1189.82,0.00021917,2]
[372493513,1752663056395,-180.53909,0.00021917,2]
[372493514,1752663056405,-151.0,0.00021917,2]
[372493515,1752663056415,-802.61,0.00021917,2]
[372493516,1752663056425,-153.176439,0.00021917,2]
[372493517,1752663056435,-460.0,0.00021917,2]
[372493518,1752663056444,-504.66,0.00021917,2]
[372493519,1752663056454,-1356.57,0.00021917,2]
[372493520,1752663056463,-573.37,0.00021917,2]
[372493521,1752663056472,-460.0,0.00021917,2]
[372493522,1752663056485,-8020.77,0.00021917,2]
[372493523,1752663056496,-167.81122,0.00021917,2]
[372493524,1752663056505,-5279.75,0.00021917,2]
[372493525,1752663056515,-32484.29,0.00021917,2]
[372493526,1752663056524,-460.0,0.00021917,2]
[372493527,1752663056533,-225.31385655,0.00021917,2]
[372493528,1752663056543,-1204.94,0.00021917,2]
[372493529,1752663056552,-3572.47,0.00021917,2]
[372493530,1752663056562,-460.0,0.00021917,2]
[372493531,1752663056571,-460.0,0.00021917,2]
[372493532,1752663056580,-676.02,0.00021917,2]
[372493533,1752663056590,-1007.81,0.00021917,2]
[372493534,1752663056600,-19195.94,0.00021917,2]
[372493535,1752663056610,-684.08,0.00021917,2]
[372493536,1752663056619,-14730.83,0.00021917,2]
[372493537,1752663056628,-460.0,0.00021917,2]
[372493538,1752663056638,-1061.14,0.00021917,2]
[372493539,1752663056647,-460.0,0.00021917,2]
[372493540,1752663056658,-3566.5,0.00021917,2]
[372493541,1752663056667,-3262.8,0.00021917,2]
[372493542,1752663056677,-503.90124771,0.00021917,2]
[372493543,1752663056686,-628.29,0.00021917,2]
[372493544,1752663056696,-460.0,0.00021917,2]
[372493545,1752663056705,-460.0,0.00021917,2]
[372493546,1752663056716,-460.0,0.00021917,2]
[372493547,1752663056725,-612.3,0.00021917,2]
[372493548,1752663056735,-460.0,0.00021917,2]
[372493549,1752663056744,-1692.42,0.00021917,2]
[372493550,1752663056753,-1225.77,0.00021917,2]
[372493551,1752663056763,-22442.02,0.00021917,2]
[372493552,1752663056772,-1745.31,0.00021917,2]
[372493553,1752663056782,-5682.68,0.00021917,2]
[372493554,1752663056791,-460.0,0.00021917,2]
[372493555,1752663056801,-460.0,0.00021917,2]
[372493556,1752663056810,-460.0,0.00021917,2]
[372493557,1752663056820,-3509.68,0.00021917,2]
[372493558,1752663056829,-460.0,0.00021917,2]
[372493559,1752663056839,-460.0,0.00021917,2]
[372493560,1752663056849,-151.0,0.00021917,2]
[372493561,1752663056858,-686.39,0.00021917,2]
[372493562,1752663056867,-151.0,0.00021917,2]
[372493563,1752663056877,-1807.34,0.00021917,2]
[372493564,1752663056887,-151.0,0.00021917,2]
[372493565,1752663056897,-151.0,0.00021917,2]
[372493566,1752663056906,-4110.38,0.00021917,2]
[372493567,1752663056917,-460.0,0.00021917,2]
[372493568,1752663056927,-1598.24,0.00021917,2]
[372493569,1752663056936,-151.0,0.00021917,2]
[372493570,1752663056945,-460.0,0.00021917,2]
[372493571,1752663056955,-460.0,0.00021917,2]
[372493572,1752663056965,-949.55,0.00021917,2]
[372493573,1752663056975,-4959.45,0.00021917,2]
[372493574,1752663056985,-1841.85,0.00021917,2]
[372493575,1752663056994,-460.0,0.00021917,2]
[372493576,1752663057004,-2472.8,0.00021917,2]
[372493577,1752663057013,-460.0,0.00021917,2]
[372493578,1752663057023,-460.0,0.00021917,2]
[372493579,1752663057033,-151.0,0.00021917,2]
[372493580,1752663057042,-58694.54,0.00021917,2]
[372493581,1752663057052,-151.0,0.00021917,2]
[372493582,1752663057063,-151.0,0.00021917,2]
[372493583,1752663057073,-396.528504,0.00021917,2]
[372493584,1752663057084,-3547.98,0.00021917,2]
[372493585,1752663057095,-151.0,0.00021917,2]
[372493586,1752663057105,-396.528504,0.00021917,2]
[372493587,1752663057114,-151.0,0.00021917,2]
[372493588,1752663057123,-396.528504,0.00021917,2]
[372493589,1752663057133,-159.92452,0.00021917,2]
[372493590,1752663057143,-396.528504,0.00021917,2]
[372493591,1752663057155,-396.528504,0.00021917,2]
[372493592,1752663057165,-461.47069613,0.00021917,2]
[372493593,1752663057177,-603.39,0.00021917,2]
[372493594,1752663057187,-396.528504,0.00021917,2]
[372493595,1752663057195,-2993.43,0.00021917,2]
[372493596,1752663057204,-1447.83,0.00021917,2]
[372493597,1752663057215,-396.528504,0.00021917,2]
[372493598,1752663057224,-5628.71,0.00021917,2]
[372493599,1752663057234,-460.0,0.00021917,2]
[372493600,1752663057244,-460.0,0.00021917,2]
[372493601,1752663057256,-396.528504,0.00021917,2]
[372493602,1752663057265,-396.528504,0.00021917,2]
[372493603,1752663057276,-1683.09,0.00021917,2]
[372493604,1752663057285,-396.528504,0.00021917,2]
[372493605,1752663057295,-396.528504,0.00021917,2]
[372493606,1752663057304,-1144.35,0.00021917,2]
[372493607,1752663057314,-1096.81,0.00021917,2]
[372493608,1752663057323,-2285.96,0.00021917,2]
[372493609,1752663057333,-396.528504,0.00021917,2]
[372493610,1752663057343,-483.36,0.00021917,2]
[372493611,1752663057354,-396.528504,0.00021917,2]
[372493612,1752663057364,-396.528504,0.00021917,2]
[372493613,1752663057374,-1319.97,0.00021917,2]
[372493614,1752663057383,-460.0,0.00021917,2]
[372493615,1752663057392,-5147.01,0.00021917,2]
[372493616,1752663057402,-8010.56,0.00021917,2]
[372493617,1752663057411,-500.0,0.00021917,2]
[372493618,1752663057421,-502.66379358,0.00021917,2]
[372493619,1752663057431,-639.1,0.00021917,2]
[372493620,1752663057440,-151.0,0.00021917,2]
[372493621,1752663057450,-739.23,0.00021917,2]
[372493622,1752663057459,-460.0,0.00021917,2]
[372493623,1752663057468,-151.0,0.00021917,2]
[372493624,1752663057479,-6205.36,0.00021917,2]
[372493625,1752663057488,-151.0,0.00021917,2]
[372493626,1752663057498,-510.71,0.00021917,2]
[372493627,1752663057507,-463.50617636,0.00021917,2]
[372493628,1752663057518,-2249.11,0.00021917,2]
[372493629,1752663057527,-209.803661,0.00021917,2]
[372493630,1752663057536,-460.0,0.00021917,2]
[372493631,1752663057545,-4164.71,0.00021917,2]
[372493632,1752663057555,-460.0,0.00021917,2]
[372493633,1752663057565,-6769.38,0.00021917,2]
[372493634,1752663057574,-2022.49,0.00021917,2]
[372493635,1752663057583,-460.0,0.00021917,2]
[372493636,1752663057593,-151.0,0.00021917,2]
[372493637,1752663057603,-151.0,0.00021917,2]
[372493638,1752663057612,-151.0,0.00021917,2]
[372493639,1752663057622,-1115.74,0.00021917,2]
[372493640,1752663057631,-151.0,0.00021917,2]
[372493641,1752663057641,-460.0,0.00021917,2]
[372493642,1752663057650,-151.0,0.00021917,2]
[372493643,1752663057659,-460.0,0.00021917,2]
[372493644,1752663057669,-151.0,0.00021917,2]
[372493645,1752663057678,-485.08,0.00021917,2]
[372493646,1752663057687,-795.42,0.00021917,2]
[372493647,1752663057697,-460.0,0.00021917,2]
[372493648,1752663057706,-2986.83,0.00021917,2]
[372493649,1752663057715,-460.0,0.00021917,2]
[372493650,1752663057725,-151.0,0.00021917,2]
[372493651,1752663057734,-247.947401,0.00021917,2]
[372493652,1752663057744,-151.0,0.00021917,2]
[372493653,1752663057753,-492.49853719,0.00021917,2]
[372493654,1752663057762,-151.0,0.00021917,2]
[372493655,1752663057773,-460.0,0.00021917,2]
[372493656,1752663057782,-830.15,0.00021917,2]
[372493657,1752663057791,-619.04,0.00021917,2]
[372493658,1752663057800,-3400.85,0.00021917,2]
[372493659,1752663057810,-1181.41,0.00021917,2]
[372493660,1752663057819,-1807.42,0.00021917,2]
[372493661,1752663057828,-1132.19,0.00021917,2]
[372493662,1752663057837,-460.0,0.00021917,2]
[372493663,1752663057848,-177.16867,0.00021917,2]
[372493664,1752663057858,-460.0,0.00021917,2]
[372493665,1752663057868,-2724.38,0.00021917,2]
[372493666,1752663057877,-461.66093109,0.00021917,2]
[372493667,1752663057887,-135275.72,0.00021917,2]
[372493668,1752663057896,-1356.39,0.00021917,2]
[372493669,1752663057906,-3360.53,0.00021917,2]
[372493670,1752663057915,-460.0,0.00021917,2]
[372493671,1752663057924,-4311.63,0.00021917,2]
[372493672,1752663057934,-1607.81,0.00021917,2]
[372493673,1752663057943,-607.76107713,0.00021917,2]
[372493674,1752663057953,-7249.88,0.00021917,2]
[372493675,1752663057962,-1218.65,0.00021917,2]
[372493676,1752663057972,-469.05,0.00021917,2]
[372493677,1752663057981,-1167.98,0.00021917,2]
[372493678,1752663057991,-878.69,0.00021917,2]
[372493679,1752663058000,-1167.98,0.00021917,2]
[372493680,1752663058009,-1167.98,0.00021917,2]
[372493681,1752663058018,-10952.53,0.00021917,2]
[372493682,1752663058028,-908.48,0.00021917,2]
[372493683,1752663058038,-1167.98,0.00021917,2]
[372493684,1752663058047,-1167.98,0.00021917,2]
[372493685,1752663058057,-1167.98,0.00021917,2]
[372493686,1752663058066,-1167.98,0.00021917,2]
[372493687,1752663058076,-1167.98,0.00021917,2]
[372493688,1752663058085,-1167.98,0.00021917,2]
[372493689,1752663058095,-460.0,0.00021917,2]
[372493690,1752663058105,-2188.41,0.00021917,2]
[372493691,1752663058115,-460.0,0.00021917,2]
[372493692,1752663058124,-460.0,0.00021917,2]
[372493693,1752663058134,-500.0,0.00021917,2]
[372493694,1752663058143,-460.0,0.00021917,2]
[372493695,1752663058152,-1585.43,0.00021917,2]
[372493696,1752663058163,-460.0,0.00021917,2]
[372493697,1752663058178,-460.0,0.00021917,2]
[372493698,1752663058188,-460.0,0.00021917,2]
[372493699,1752663058198,-6933.38,0.00021917,2]
[372493700,1752663058208,-460.0,0.00021917,2]
[372493701,1752663058218,-6833.92,0.00021917,2]
[372493702,1752663058227,-7163.36,0.00021917,2]
[372493703,1752663058237,-460.0,0.00021917,2]
[372493704,1752663058247,-460.0,0.00021917,2]
[372493705,1752663058257,-13647.01,0.00021917,2]
[372493706,1752663058267,-1251.22,0.00021917,2]
[372493707,1752663058276,-5595.33,0.00021917,2]
[372493708,1752663058286,-461.23154058,0.00021917,2]
[372493709,1752663058295,-2582.73,0.00021917,2]
[372493710,1752663058304,-743.27,0.00021917,2]
[372493711,1752663058313,-1673.31,0.00021917,2]
[372493712,1752663058323,-8217.22,0.00021917,2]
[372493713,1752663058333,-460.0,0.00021917,2]
[372493714,1752663058343,-460.0,0.00021917,2]
[372493715,1752663058352,-4826.81,0.00021917,2]
[372493716,1752663058361,-151.0,0.00021917,2]
[372493717,1752663058371,-6145.91,0.00021917,2]
[372493718,1752663058380,-460.0,0.00021917,2]
[372493719,1752663058390,-151.0,0.00021917,2]
[372493720,1752663058399,-460.0,0.00021917,2]
[372493721,1752663058409,-151.0,0.00021917,2]
[372493722,1752663058418,-151.0,0.00021917,2]
[372493723,1752663058427,-151.0,0.00021917,2]
[372493724,1752663058437,-189.88008324,0.00021917,2]
[372493725,1752663058447,-1655.82,0.00021917,2]
[372493726,1752663058457,-197.026223,0.00021917,2]
[372493727,1752663058466,-197.026223,0.00021917,2]
[372493728,1752663058478,-460.0,0.00021917,2]
[372493729,1752663058488,-3760.87,0.00021917,2]
[372493730,1752663058498,-151.0,0.00021917,2]
[372493731,1752663058508,-4288.94,0.00021917,2]
[372493732,1752663058518,-589.02,0.00021917,2]
[372493733,1752663058528,-197.026223,0.00021917,2]
[372493734,1752663058537,-465.59316935,0.00021917,2]